bitfinex-derivatives/quotes_ETHF0:USTF0_20250309
["timestamp","ask_amount","ask_price","bid_price","bid_amount"]
[1741538798286,2.868,2077.9,2077.5,3.2078]
[1741538798473,2.868,2077.9,2077.4,40.80720859]
[1741538798673,4.51549799,2089.7,2077.4,40.80720859]
[1741538798674,6.1558,2078.4,2077.8,3.2078]
[1741538798875,2.869,2078.7,2077.8,3.2078]
[1741538799182,0.96254,2078.2,2078.1,3.2078]
[1741538799373,3.2078,2078.8,2078.1,3.2078]
[1741538799685,9.39303,2079.2,2078.1,7.2078]
[1741538799979,2.869,2079.1,2078.1,4.17036]
[1741538800181,0.96259,2078.1,2078.0,2.949]
[1741538800480,2.40598,2078.6,2077.9,6.8446]
[1741538800678,2.869,2078.7,2078.2,3.2078]
[1741538800876,0.96969859,2078.3,2078.2,3.2078]
[1741538801178,0.96263,2078.0,2077.9,7.1834]
[1741538801388,0.00720859,2078.3,2077.9,7.1834]
[1741538801882,0.00720859,2078.3,2078.2,4.17034]
[1741538802074,0.00720859,2078.3,2078.2,8.17034]
[1741538802274,0.00720859,2078.3,2078.2,48.97034]
[1741538803577,0.00720859,2078.3,2078.2,48.0078]
[1741538803779,0.96969859,2078.3,2078.2,44.0078]
[1741538803983,0.00720859,2078.3,2078.2,48.0078]
[1741538804180,0.96969859,2078.3,2078.2,44.0078]
[1741538804385,0.00720859,2078.3,2078.2,48.97034]
[1741538805674,0.00720859,2078.3,2078.2,44.97034]
[1741538806086,6.0758,2079.2,2078.3,2.40624]
[1741538806286,0.9622,2079.0,2078.9,3.2078]
[1741538806683,0.96217,2079.0,2078.9,3.2078]
[1741538806889,6.0758,2079.2,2078.9,3.2078]
[1741538806890,0.96215,2079.1,2078.9,4.16998]
[1741538807081,2.40482,2079.6,2078.9,3.2078]
[1741538807082,6.0758,2079.5,2078.9,3.2078]
[1741538807286,0.96217,2079.0,2078.9,3.2078]
[1741538807486,0.00720859,2079.2,2079.1,0.96212]
[1741538807886,0.00720859,2079.2,2079.1,4.96212]
[1741538808087,0.00720859,2079.2,2079.1,45.76212]
[1741538808878,3.2078,2079.8,2079.1,44.8]
[1741538809078,3.2078,2079.8,2079.5,0.96192]
[1741538809079,0.96186,2079.7,2079.5,0.96192]
[1741538809384,0.96194,2079.5,2079.4,3.2078]
[1741538809584,0.96192,2079.6,2079.4,4.16978]
[1741538809786,0.96194,2079.5,2079.4,3.2078]
[1741538810484,0.96194,2079.5,2079.0,3.91115]
[1741538810485,3.2078,2079.5,2079.0,2.949]
[1741538810686,3.2078,2079.5,2078.8,3.21500859]
[1741538810889,0.96222,2078.9,2078.8,0.00720859]
[1741538812188,4.0,2078.9,2078.1,40.8]
[1741538812392,0.96271,2077.9,2077.6,4.1706]
[1741538812591,3.2078,2078.2,2077.6,3.2078]
[1741538812791,2.948,2078.9,2077.4,3.7661]
[1741538812792,0.96286,2077.5,2077.4,3.7661]
[1741538813094,0.96286,2077.5,2077.4,40.8]
[1741538813681,3.2078,2077.6,2077.4,40.8]
[1741538813890,0.96286,2077.5,2077.4,40.8]
[1741538814295,0.96296,2077.3,2077.2,0.00720859]
[1741538814496,0.96319,2076.8,2076.7,21.593]
[1741538814694,0.96319,2076.8,2076.7,62.393]
[1741538814892,0.96319,2076.8,2076.7,40.8]
[1741538815397,0.96307,2077.1,2076.7,40.8]
[1741538815599,0.96313,2077.0,2076.7,44.0078]
[1741538815992,0.96302,2077.2,2076.8,0.96317]
[1741538816294,2.867,2077.3,2076.7,44.0078]
[1741538816502,0.96298,2077.3,2077.0,3.2078]
[1741538816692,3.2078,2077.6,2077.0,3.2078]
[1741538816898,0.00720859,2077.7,2077.4,0.96289]
[1741538817099,0.00720859,2077.7,2077.5,0.96285]
[1741538817294,0.00720859,2077.7,2077.6,0.96282]
[1741538817602,0.00720859,2077.7,2077.6,4.17062]
[1741538817802,0.00720859,2077.7,2077.6,3.2078]
[1741538817997,0.00720859,2077.7,2077.6,44.97062]
[1741538818192,0.96997859,2077.7,2077.6,44.0078]
[1741538818395,0.96997859,2077.7,2077.6,40.8]
[1741538818599,0.00720859,2077.7,2077.6,40.8]
[1741538818802,0.00720859,2077.7,2077.6,48.97062]
[1741538818994,0.96277,2077.7,2077.6,48.0078]
[1741538819200,0.96277,2077.7,2077.6,44.0078]
[1741538822004,2.87520859,2077.9,2077.6,44.0078]
[1741538822301,0.96277,2077.7,2077.6,44.0078]
[1741538822606,0.96277,2077.7,2077.6,3.2078]
[1741538823705,2.87520859,2077.9,2077.6,3.2078]
[1741538823891,0.96272,2077.8,2077.6,3.2078]
[1741538824096,2.87520859,2077.9,2077.6,3.2078]
[1741538824298,3.83790859,2077.9,2077.6,4.17059]
[1741538824500,0.96277,2077.7,2077.6,3.2078]
[1741538824803,0.96282,2077.6,2077.5,40.80720859]
[1741538825000,2.40726,2077.5,2076.8,3.2078]
[1741538825200,0.96314,2076.9,2076.8,3.2078]
[1741538826100,2.40763,2077.1,2076.5,3.2078]
[1741538826308,0.96328,2076.6,2076.5,3.2078]
[1741538826600,2.40775,2077.0,2076.5,3.2078]
[1741538826601,0.96326,2076.7,2076.5,44.0078]
[1741538826808,2.41495859,2077.0,2076.5,44.0078]
[1741538826998,0.96326,2076.7,2076.5,44.0078]
[1741538827510,0.00720859,2077.0,2076.5,44.0078]
[1741538828002,0.00720859,2077.0,2076.8,3.2078]
[1741538828203,0.96314,2076.9,2076.8,3.2078]
[1741538828507,2.87520859,2077.0,2076.5,40.8]
[1741538828709,0.96327,2076.7,2076.5,40.8]
[1741538829005,2.87520859,2077.0,2076.5,41.76331]
[1741538829199,0.96322,2076.8,2076.5,40.8]
[1741538829401,0.96325,2076.7,2076.5,40.8]
[1741538829599,0.96328,2076.6,2076.5,40.8]
[1741538830206,2.87520859,2077.0,2076.5,40.8]
[1741538830409,5.28298859,2077.0,2076.5,40.8]
[1741538830604,11.6807,2077.8,2077.6,27.92358141]
[1741538830808,10.02357,2077.7,2076.5,40.8]
[1741538831002,0.96328,2076.6,2076.5,40.8]
[1741538831207,2.868,2076.7,2076.1,3.2078]
[1741538831401,3.2078,2076.3,2075.3,7.0754]
[1741538831602,0.9638,2075.5,2075.3,7.0754]
[1741538831801,0.9637,2075.7,2075.6,0.00722613]
[1741538832299,0.9637,2075.7,2075.6,40.80722613]
[1741538833308,2.868,2075.8,2075.6,0.00722613]
[1741538833503,0.9637,2075.7,2075.6,0.00722613]
[1741538833703,3.83169,2075.8,2075.6,40.80722613]
[1741538833903,0.9637,2075.7,2075.6,40.80722613]
[1741538834900,0.96379,2075.5,2075.4,3.2078]
[1741538835415,3.2078,2075.7,2075.1,3.2078]
[1741538835908,0.96393,2075.2,2075.1,3.2078]
[1741538836413,2.869,2075.3,2075.1,44.0078]
[1741538836709,3.21502613,2076.0,2075.1,48.0078]
[1741538837007,0.96365,2075.8,2075.7,3.2078]
[1741538837513,0.96385,2075.4,2075.2,7.253]
[1741538837710,2.869,2075.9,2075.2,7.253]
[1741538838014,0.96385,2075.4,2075.2,7.253]
[1741538838204,5.27809,2075.9,2075.2,7.253]
[1741538838402,0.96388,2075.3,2075.2,7.253]
[1741538838604,2.40914,2075.8,2075.2,7.253]
[1741538838806,2.40925,2075.7,2075.2,7.253]
[1741538839012,0.96388,2075.3,2075.2,7.253]
[1741538839205,0.96385,2075.4,2075.2,7.253]
[1741538839413,2.869,2075.9,2075.2,7.253]
[1741538839801,0.96367,2075.8,2075.6,0.96374]
[1741538840004,2.869,2075.9,2075.6,0.96371]
[1741538840005,0.96362,2075.9,2075.6,0.96371]
[1741538840208,0.00722613,2076.0,2075.9,0.96361]
[1741538840713,2.40785,2077.0,2075.9,4.96361]
[1741538840907,0.96331,2076.6,2076.0,3.9151]
[1741538841211,0.9633,2076.6,2076.5,3.2078]
[1741538841911,0.96328,2076.6,2076.5,3.2078]
[1741538843211,0.96337,2076.4,2076.3,0.00722613]
[1741538843714,0.96337,2076.5,2076.3,0.00722613]
[1741538844015,0.96337,2076.4,2076.3,0.00722613]
[1741538844722,2.869,2076.6,2076.3,0.00722613]
[1741538844904,0.96336,2076.5,2076.3,0.00722613]
[1741538845218,0.96335,2076.5,2076.3,0.00722613]
[1741538845715,2.87622613,2076.8,2076.3,4.00722613]
[1741538845915,2.869,2077.3,2076.7,4.17103]
[1741538846116,0.96311,2077.0,2076.7,4.17103]
[1741538846319,3.2078,2077.5,2076.7,3.2078]
[1741538846615,0.96296,2077.3,2077.2,3.2078]
[1741538846814,2.40671,2077.9,2077.2,3.2078]
[1741538847008,0.96291,2077.4,2077.3,40.8]
[1741538847209,5.62190613,2077.8,2076.9,3.2078]
[1741538847408,2.40705,2077.6,2076.9,3.2078]
[1741538847604,3.21502613,2077.8,2076.9,3.2078]
[1741538847805,3.21502613,2077.8,2076.7,7.8546]
[1741538847806,0.96296,2077.3,2077.2,3.2078]
[1741538848016,5.62191613,2077.8,2077.0,40.80722613]
[1741538848218,0.96305,2077.1,2077.0,40.80722613]
[1741538848417,5.62191613,2077.8,2077.0,40.80722613]
[1741538848811,0.96297,2077.3,2077.0,40.80722613]
[1741538849018,0.96292,2077.4,2077.2,3.2078]
[1741538849206,0.9629,2077.5,2077.2,3.2078]
[1741538849408,2.87522613,2077.8,2077.2,3.2078]
[1741538849612,0.00722613,2077.8,2077.2,3.2078]
[1741538849813,0.96296,2077.3,2077.2,3.2078]
[1741538850316,0.96289,2077.5,2077.2,3.2078]
[1741538850519,6.08302613,2077.8,2077.2,3.2078]
[1741538850717,0.96284,2077.6,2077.2,3.2078]
[1741538850918,0.96293,2077.4,2077.2,3.2078]
[1741538851321,5.28212613,2077.8,2077.2,3.2078]
[1741538851616,6.08302613,2077.8,2077.2,3.2078]
[1741538851817,0.96296,2077.3,2077.2,3.2078]
[1741538852624,2.40717,2077.5,2077.0,0.00722613]
[1741538852625,0.96305,2077.1,2077.0,0.00722613]
[1741538853424,2.867,2077.4,2077.0,3.21502613]
[1741538853723,0.96305,2077.1,2077.0,3.21502613]
[1741538854116,0.96305,2077.1,2077.0,0.00722613]
[1741538854316,0.96305,2077.1,2077.0,3.21502613]
[1741538854513,2.867,2077.4,2077.0,3.21502613]
[1741538854721,0.96301,2077.2,2077.0,3.21502613]
[1741538854915,2.867,2077.4,2077.0,3.21502613]
[1741538855121,0.96305,2077.1,2077.0,3.21502613]
[1741538856018,0.96305,2077.1,2077.0,0.00722613]
[1741538856718,4.96305,2077.1,2077.0,6.13e-06]
[1741538856920,2.40832,2076.6,2076.0,3.2078]
[1741538857120,2.866,2076.7,2076.3,3.2078]
[1741538857323,0.96337,2076.4,2076.3,44.0078]
[1741538858123,5.27414,2076.7,2075.7,24.571]
[1741538858124,0.00722613,2076.6,2076.1,0.00722613]
[1741538858325,0.96347,2076.2,2076.1,0.00722613]
[1741538858626,0.96347,2076.2,2076.1,6.13e-06]
[1741538858627,3.82947,2076.2,2076.1,6.13e-06]
[1741538858818,7.82947,2076.2,2076.1,6.13e-06]
[1741538859019,3.82947,2076.2,2076.1,6.13e-06]
[1741538862423,5.39342,2076.5,2076.1,6.13e-06]
[1741538862424,5.851,2076.5,2076.1,6.13e-06]
[1741538862625,2.866,2076.5,2076.1,6.13e-06]
[1741538862932,0.96347,2076.2,2076.1,6.13e-06]
[1741538866738,3.82947,2076.2,2076.1,6.13e-06]
[1741538873349,0.96384,2075.4,2075.3,7.9113]
[1741538873542,0.96384,2075.4,2075.3,3.9907]
[1741538874133,0.96384,2075.4,2075.3,44.7907]
[1741538874441,0.00722613,2075.6,2075.3,44.7907]
[1741538874841,0.97097613,2075.6,2075.5,3.2078]
[1741538876145,5.62441613,2075.6,2075.2,3.2078]
[1741538876333,5.62441613,2075.6,2075.1,0.00722613]
[1741538876334,0.96393,2075.2,2075.1,6.13e-06]
[1741538876540,3.82993,2075.2,2075.1,6.13e-06]
[1741538877237,7.82993,2075.2,2075.1,6.13e-06]
[1741538877637,3.82993,2075.2,2075.1,6.13e-06]
[1741538879546,0.96407,2074.9,2074.8,3.2078]
[1741538880246,0.96426,2074.5,2074.4,3.2578]
[1741538880645,0.96426,2074.5,2074.4,44.0578]
[1741538881243,0.96426,2074.5,2074.0,3.2078]
[1741538881445,0.96444,2074.1,2074.0,3.2078]
[1741538881641,8.48434,2074.6,2074.0,3.2078]
[1741538881642,2.866,2074.2,2074.0,3.2078]
[1741538881845,3.83033,2074.4,2074.1,40.8]
[1741538882041,2.866,2074.5,2074.1,40.8]
[1741538882244,2.866,2074.5,2074.3,3.2078]
[1741538882445,2.87322613,2074.5,2074.3,3.2078]
[1741538882840,0.9643,2074.4,2074.3,3.2078]
[1741538883252,2.87322613,2074.5,2074.4,0.9643]
[1741538883451,3.2078,2075.2,2074.3,3.2078]
[1741538883646,0.96412,2074.8,2074.7,3.2078]
[1741538883849,5.27599,2075.1,2074.3,3.2078]
[1741538883850,2.41024,2074.9,2074.3,3.2078]
[1741538884046,0.9643,2074.4,2074.3,3.2078]
[1741538884657,0.9644,2074.2,2074.1,0.00482017]
[1741538884847,0.96458,2073.8,2073.7,3.2078]
[1741538885953,0.96486,2073.3,2073.1,7.0113]
[1741538886158,2.41161,2073.7,2073.1,3.2078]
[1741538886159,0.96486,2073.2,2073.1,3.2078]
[1741538886446,0.96486,2073.2,2073.1,44.0078]
[1741538887247,0.96486,2073.2,2073.1,3.2078]
[1741538887445,0.00722613,2073.4,2073.0,0.00722613]
[1741538887446,3.21502613,2073.4,2073.0,0.00722613]
[1741538887644,0.96491,2073.1,2073.0,40.80722613]
[1741538887954,7.03871,2073.1,2073.0,0.00722613]
[1741538888156,10.0738,2073.1,2072.3,3.2078]
[1741538888457,10.0738,2073.1,2072.0,4.1732]
[1741538888458,0.96522,2072.5,2072.0,4.1732]
[1741538888646,2.866,2072.7,2072.3,3.2078]
[1741538889254,2.866,2073.3,2073.0,0.96492]
[1741538889452,2.866,2073.3,2072.5,3.2078]
[1741538889653,2.866,2073.3,2072.4,11.29]
[1741538889846,3.2078,2073.2,2072.4,11.29]
[1741538890052,0.96519,2072.5,2072.4,11.29]
[1741538890254,2.41228,2073.1,2072.4,11.29]
[1741538890255,3.8451,2073.1,2072.4,11.29]
[1741538890451,3.83084,2073.3,2072.8,3.2078]
[1741538890645,0.00722613,2073.0,2072.5,0.00722613]
[1741538890851,0.00722613,2073.0,2072.9,3.2078]
[1741538891659,3.8093,2074.0,2073.1,0.96488]
[1741538891845,3.8093,2074.0,2072.9,48.0078]
[1741538891846,3.2078,2074.4,2073.8,3.2078]
[1741538892052,2.866,2074.2,2073.8,3.2078]
[1741538892252,0.96454,2073.9,2073.8,3.2078]
[1741538892447,2.866,2074.2,2073.8,3.2078]
[1741538892647,0.96454,2073.9,2073.8,3.2078]
[1741538892852,0.96454,2073.9,2073.8,3.21502613]
[1741538893055,0.96454,2073.9,2073.8,0.00722613]
[1741538893353,4.96454,2073.9,2073.8,6.13e-06]
[1741538893759,0.96454,2073.9,2073.8,6.13e-06]
[1741538893960,4.96454,2073.9,2073.8,6.13e-06]
[1741538894661,0.96454,2073.9,2073.8,6.13e-06]
[1741538896053,4.96454,2073.9,2073.8,6.13e-06]
[1741538896258,7.94954,2073.9,2073.8,6.13e-06]
[1741538896661,3.94954,2073.9,2073.8,6.13e-06]
[1741538897864,2.87322613,2074.2,2073.8,6.13e-06]
[1741538898162,0.96454,2073.9,2073.8,6.13e-06]
[1741538898359,2.87322613,2074.2,2073.8,6.13e-06]
[1741538898667,0.96454,2073.9,2073.8,6.13e-06]
[1741538898861,0.00722613,2074.2,2073.8,3.20780613]
[1741538899065,0.00722613,2074.2,2074.1,4.17224]
[1741538899270,0.00722613,2074.2,2074.1,3.2078]
[1741538899453,0.9644,2074.2,2074.1,40.8]
[1741538899659,0.96449,2074.0,2073.9,3.7903]
[1741538899956,0.96443,2074.2,2073.9,3.7903]
[1741538900161,3.83028,2074.5,2074.2,0.96439]
[1741538900357,2.866,2074.5,2074.3,3.2078]
[1741538900560,0.00722613,2074.6,2074.4,0.96429]
[1741538900763,0.00722613,2074.6,2074.4,3.9234]
[1741538900958,0.96426,2074.5,2074.4,3.9234]
[1741538901364,0.9643,2074.4,2074.3,3.2078]
[1741538901562,0.00722613,2074.6,2074.0,44.0078]
[1741538901761,0.96444,2074.1,2074.0,3.2078]
[1741538902362,2.865,2074.2,2074.0,3.2078]
[1741538902555,2.865,2074.2,2074.0,4.17226]
[1741538902861,0.96432,2074.4,2074.0,4.17226]
[1741538902862,0.96433,2074.4,2074.0,4.17226]
[1741538903168,0.96435,2074.3,2074.0,3.2078]
[1741538903351,0.00722613,2074.6,2074.0,3.2078]
[1741538903552,0.00722613,2074.6,2074.4,0.96428]
[1741538903761,0.96419,2074.7,2074.3,3.2078]
[1741538903762,2.865,2075.1,2074.3,3.2078]
[1741538903958,2.41007,2075.0,2074.7,3.2078]
[1741538904158,0.96412,2074.8,2074.7,3.2078]
[1741538904358,0.96432,2074.4,2074.2,3.2078]
[1741538904553,0.96432,2074.4,2074.3,3.2078]
[1741538904757,0.00722613,2074.6,2074.3,40.8]
[1741538904960,0.9643,2074.4,2074.3,40.8]
[1741538905159,0.00722613,2074.6,2074.3,40.8]
[1741538905360,0.96421,2074.6,2074.5,3.2078]
[1741538905558,2.865,2075.0,2074.5,3.2078]
[1741538905762,0.96414,2074.8,2074.6,5.15941]
[1741538905961,2.865,2075.0,2074.6,4.1952]
[1741538906161,0.96416,2074.7,2074.6,4.1952]
[1741538906358,2.865,2075.0,2074.6,4.1952]
[1741538906664,0.97129613,2074.9,2074.8,3.2078]
[1741538906860,2.865,2075.0,2074.8,3.2078]
[1741538907268,0.96407,2074.9,2074.8,3.2078]
[1741538907953,0.96416,2074.7,2074.6,4.1952]
[1741538908153,0.9643,2074.4,2074.3,3.2078]
[1741538909059,0.96454,2073.9,2073.8,6.13e-06]
[1741538909259,3.82854,2073.9,2073.8,6.13e-06]
[1741538909459,7.03634,2073.9,2073.8,6.13e-06]
[1741538909764,11.03634,2073.9,2073.8,6.13e-06]
[1741538910865,7.03634,2073.9,2073.8,6.13e-06]
[1741538911772,11.03634,2073.9,2073.8,6.13e-06]
[1741538912074,14.02134,2073.9,2073.8,6.13e-06]
[1741538912268,14.02134,2073.9,2072.8,44.0078]
[1741538912269,0.965,2072.9,2072.8,44.0078]
[1741538912575,0.965,2072.9,2072.8,40.8]
[1741538912576,3.829,2072.9,2072.8,40.8]
[1741538913474,0.965,2072.9,2072.8,40.8]
[1741538913873,2.864,2073.0,2072.8,40.8]
[1741538914069,0.965,2072.9,2072.8,40.8]
[1741538914371,2.864,2073.0,2072.8,40.8]
[1741538914573,0.965,2072.9,2072.8,40.8]
[1741538915370,3.82898,2073.0,2072.8,40.8]
[1741538915575,2.864,2073.0,2072.8,40.8]
[1741538915764,0.00722613,2073.1,2072.8,40.8]
[1741538915970,0.965,2072.9,2072.8,40.8]
[1741538916167,0.00722613,2073.1,2072.8,40.8]
[1741538916476,2.864,2073.3,2073.0,3.2078]
[1741538916671,0.96491,2073.1,2073.0,3.2078]
[1741538919576,2.86881742,2073.3,2073.0,3.2078]
[1741538919775,0.96491,2073.1,2073.0,3.2078]
[1741538920176,6.07661742,2073.3,2072.8,40.8]
[1741538920376,0.965,2072.9,2072.8,40.8]
[1741538920779,2.863,2073.1,2072.8,40.8]
[1741538920977,0.96493,2073.1,2072.8,40.8]
[1741538921276,0.96492,2073.1,2073.0,3.2078]
[1741538921776,2.863,2073.2,2073.0,3.2078]
[1741538921974,3.82788,2073.2,2073.0,3.2078]
[1741538922179,0.00481742,2073.3,2073.0,3.2078]
[1741538922377,0.96491,2073.1,2073.0,3.2078]
[1741538922780,0.96486,2073.2,2073.0,3.2078]
[1741538923076,0.96486,2073.2,2073.1,3.2078]
[1741538923778,0.965,2072.9,2072.8,44.0078]
[1741538924078,0.965,2072.9,2072.8,3.2078]
[1741538924379,0.96509,2072.7,2072.6,44.87432613]
[1741538924878,0.96509,2072.7,2072.6,40.80722613]
[1741538926074,4.17289,2072.7,2072.6,0.00722613]
[1741538927271,3.2078,2072.7,2072.0,3.2078]
[1741538927477,0.96537,2072.1,2072.0,44.0078]
[1741538928288,0.96537,2072.1,2072.0,40.8]
[1741538928673,3.82837,2072.2,2072.0,40.8]
[1741538928877,0.00722613,2072.3,2072.1,3.2078]
[1741538929181,0.00722613,2072.3,2072.0,40.8]
[1741538929384,0.96547,2071.9,2071.8,3.21502613]
[1741538929583,0.96547,2071.9,2071.8,0.00722613]
[1741538929777,4.0,2071.9,2071.5,40.8]
[1741538930082,4.0,2071.9,2071.2,3.2078]
[1741538930083,3.2078,2071.8,2071.2,3.2078]
[1741538930383,2.863,2071.7,2071.3,40.8]
[1741538930578,0.9657,2071.4,2071.3,40.8]
[1741538931479,0.96579,2071.2,2071.1,0.00722613]
[1741538931783,3.82879,2071.2,2071.1,0.00722613]
[1741538932781,7.03659,2071.2,2071.1,0.00722613]
[1741538932990,0.96589,2071.0,2070.9,3.20058]
[1741538933381,2.41464,2071.1,2070.6,7.7983]
[1741538933580,6.0708,2071.2,2070.6,7.7983]
[1741538933788,3.2078,2071.5,2070.9,3.2078]
[1741538934084,2.87022613,2071.4,2071.1,3.2078]
[1741538934284,0.96575,2071.3,2071.1,3.2078]
[1741538934484,0.00722613,2071.4,2071.1,3.2078]
[1741538934785,0.00722613,2071.4,2071.3,0.96575]
[1741538934982,3.82854,2071.8,2071.4,0.96567]
[1741538935178,2.41308,2072.5,2071.5,3.2078]
[1741538935383,0.96545,2072.0,2071.8,3.2078]
[1741538935582,2.863,2072.4,2071.8,3.2078]
[1741538935884,0.96535,2072.2,2071.8,3.2078]
[1741538936087,0.96538,2072.1,2071.8,4.17329]
[1741538936383,0.00722613,2072.2,2072.0,0.9654]
[1741538936581,0.00722613,2072.2,2072.1,3.2078]
[1741538936781,2.863,2072.8,2072.1,7.2078]
[1741538936981,0.96528,2072.3,2072.2,40.8]
[1741538937184,0.96551,2071.8,2071.7,3.2078]
[1741538939886,2.863,2071.9,2071.7,3.2078]
[1741538940084,0.96551,2071.8,2071.7,3.2078]
[1741538940280,2.863,2071.9,2071.7,3.2078]
[1741538940493,0.96551,2071.8,2071.7,3.2078]
[1741538941191,2.863,2071.9,2071.5,40.80722613]
[1741538941492,2.863,2071.9,2071.6,0.96559]
[1741538941686,2.863,2071.9,2071.8,3.2078]
[1741538941988,2.863,2071.9,2071.5,40.80722613]
[1741538942397,0.00722613,2072.0,2071.8,3.2078]
[1741538942587,0.00722613,2072.0,2071.9,0.96547]
[1741538942793,0.00722613,2072.0,2071.9,8.93777]
[1741538943297,0.96528,2072.4,2071.9,11.9723]
[1741538943503,2.862,2072.8,2072.3,3.2078]
[1741538943703,0.96505,2072.8,2072.7,3.2078]
[1741538943905,0.96513,2072.7,2072.4,3.2078]
[1741538944105,2.862,2073.1,2072.4,3.2078]
[1741538944407,0.96519,2072.5,2072.4,3.2078]
[1741538944802,0.00481742,2073.0,2072.5,0.96519]
[1741538945002,0.00481742,2073.0,2072.9,3.2078]
[1741538945199,0.00481742,2073.0,2072.9,4.1728]
[1741538945406,0.00481742,2073.0,2072.9,3.2078]
[1741538945900,0.00481742,2073.0,2072.6,3.2078]
[1741538946100,0.96509,2072.7,2072.6,3.2078]
[1741538946301,0.96509,2072.7,2072.6,44.0078]
[1741538946490,0.96509,2072.7,2072.6,3.2078]
[1741538946904,0.96523,2072.4,2072.3,3.2078]
[1741538947296,2.862,2072.8,2072.7,0.96509]
[1741538947599,0.00481742,2073.0,2072.7,3.2078]
[1741538947799,0.96505,2072.8,2072.7,3.2078]
[1741538948003,5.27359,2072.9,2072.3,3.2078]
[1741538948399,2.41263,2072.8,2072.3,3.2078]
[1741538948707,3.82601,2072.9,2072.6,4.17292]
[1741538948907,0.00481742,2073.0,2072.9,0.965]
[1741538949211,7.1836,2073.8,2072.9,3.2078]
[1741538949399,7.1836,2073.8,2072.7,7.9523]
[1741538949400,2.861,2073.7,2073.3,3.2078]
[1741538949700,12.31482,2074.2,2073.3,5.61975]
[1741538949701,2.861,2074.0,2073.3,5.61975]
[1741538949907,2.861,2074.0,2073.9,4.17234]
[1741538950107,0.96449,2074.0,2073.6,0.96466]
[1741538950298,0.96465,2073.7,2073.4,8.11975]
[1741538950502,2.86,2073.8,2073.1,3.2078]
[1741538950705,0.96469,2073.6,2073.3,0.96479]
[1741538950900,3.83182613,2073.8,2073.5,0.96472]
[1741538951104,3.83182613,2073.8,2073.5,3.2078]
[1741538951105,2.86722613,2073.8,2073.5,3.2078]
[1741538951405,0.00722613,2073.8,2073.5,3.2078]
[1741538951707,0.00722613,2073.8,2073.7,0.96463]
[1741538952107,3.2078,2074.5,2073.7,4.0]
[1741538952302,2.86,2074.7,2074.3,3.2078]
[1741538952614,0.96421,2074.6,2074.3,4.17213]
[1741538952910,2.86,2074.7,2074.3,3.2078]
[1741538953098,2.86,2074.7,2073.8,6.8051]
[1741538953099,2.86,2074.7,2074.4,3.2078]
[1741538953899,2.86,2074.7,2074.5,0.96424]
[1741538954204,0.96402,2075.1,2074.5,40.8]
[1741538954410,0.96404,2075.0,2074.8,3.2078]
[1741538954604,0.96397,2075.2,2074.9,0.96405]
[1741538954810,3.2078,2075.3,2074.8,3.2078]
[1741538955011,0.9639,2075.3,2075.1,0.96398]
[1741538955211,2.859,2075.6,2074.8,3.2078]
[1741538955403,0.96403,2075.0,2074.8,4.17191]
[1741538955598,2.40949,2075.5,2074.8,3.2078]
[1741538955599,0.96407,2074.9,2074.8,3.2078]
[1741538956105,0.96416,2074.7,2074.6,3.95232613]
[1741538956708,8.47671,2075.2,2074.6,0.00722613]
[1741538956709,6.0668,2075.2,2074.6,0.00722613]
[1741538957209,0.96416,2074.7,2074.6,0.00722613]
[1741538957400,2.858,2075.0,2074.6,0.97141613]
[1741538957600,3.82205,2075.0,2074.7,0.96415]
[1741538957801,2.858,2075.0,2074.6,0.00722613]
[1741538958103,2.858,2075.0,2074.8,3.2078]
[1741538958407,0.96407,2074.9,2074.8,3.2078]
[1741538958709,0.96412,2074.8,2074.6,0.00722613]
[1741538959112,0.96416,2074.7,2074.6,0.00722613]
[1741538959317,0.96416,2074.8,2074.6,0.00722613]
[1741538959605,0.96416,2074.7,2074.6,0.00722613]
[1741538963106,0.96416,2074.7,2074.6,6.13e-06]
[1741538963607,4.96416,2074.7,2074.6,6.13e-06]
[1741538965013,0.96477,2073.4,2073.3,3.2078]
[1741538965400,2.856,2073.7,2072.8,3.2078]
[1741538965401,8.47547,2073.7,2072.8,3.2078]
[1741538965605,0.96493,2073.1,2072.8,3.2078]
[1741538965903,8.47547,2073.7,2073.0,0.96495]
[1741538965904,3.82084,2073.3,2073.0,0.96495]
[1741538966205,0.00722613,2073.2,2073.1,3.2078]
[1741538966405,2.856,2073.8,2073.1,3.2078]
[1741538966602,6.0638,2074.1,2073.5,3.2078]
[1741538966805,0.96465,2073.7,2073.5,3.2078]
[1741538967007,2.856,2074.1,2073.5,3.2078]
[1741538967216,0.96456,2073.9,2073.6,0.96465]
[1741538967404,2.856,2074.2,2073.8,3.2078]
[1741538967713,2.41076,2074.4,2073.8,3.2078]
[1741538967913,6.0638,2074.5,2073.8,3.21502613]
[1741538968111,0.96452,2074.0,2073.8,3.21502613]
[1741538968315,0.96454,2073.9,2073.8,3.21502613]
[1741538969109,0.96454,2073.9,2073.8,44.01502613]
[1741538969410,6.9286,2075.0,2073.8,48.01502613]
[1741538969611,0.96431,2074.4,2074.2,3.2078]
[1741538969916,6.9286,2075.0,2074.2,3.2078]
[1741538969917,3.2078,2075.0,2074.2,3.2078]
[1741538970102,0.96429,2074.5,2074.2,4.17218]
[1741538970515,0.96431,2074.4,2074.2,4.17218]
[1741538970708,0.96427,2074.5,2074.3,0.96433]
[1741538971102,2.4104,2074.8,2074.2,3.2078]
[1741538971307,0.96432,2074.4,2074.2,3.2078]
[1741538971508,0.96435,2074.3,2074.2,3.2078]
[1741538971913,6.0628,2074.7,2073.8,40.80722613]
[1741538971914,0.96449,2074.0,2073.9,3.2078]